bitfinex/quotes_BTCUSD_20230118
["timestamp","ask_amount","ask_price","bid_price","bid_amount"]
[1674041636928,0.273,21207.0,21206.0,0.945128]
[1674041638209,0.273,21207.0,21206.0,1.245128]
[1674041639272,0.273,21207.0,21206.0,1.25545663]
[1674041640594,0.273,21207.0,21206.0,1.78840763]
[1674041645684,0.008356,21207.0,21206.0,1.78840763]
[1674041651203,0.248356,21207.0,21206.0,1.78840763]
[1674041652787,0.008356,21207.0,21206.0,1.78840763]
[1674041654048,0.008356,21207.0,21206.0,1.90134946]
[1674041656713,0.008356,21207.0,21206.0,2.23925738]
[1674041656968,0.008356,21207.0,21206.0,2.0704912]
[1674041657504,0.008356,21207.0,21206.0,2.12630798]
[1674041657764,0.008356,21207.0,21206.0,2.35217498]
[1674041658523,0.008356,21207.0,21206.0,2.12630798]
[1674041658783,0.008356,21207.0,21206.0,2.23925331]
[1674041659051,0.008356,21207.0,21206.0,2.07047805]
[1674041659301,0.008356,21207.0,21206.0,1.90135296]
[1674041659598,0.008356,21207.0,21206.0,1.78840763]
[1674041660874,0.008356,21207.0,21206.0,1.90135296]
[1674041661955,0.238356,21207.0,21206.0,1.90135296]
[1674041662469,0.238356,21207.0,21206.0,2.07047805]
[1674041662731,0.238356,21207.0,21206.0,1.90135296]
[1674041663328,0.238356,21207.0,21206.0,2.01245296]
[1674041663588,0.238356,21207.0,21206.0,2.01254362]
[1674041665196,0.238356,21207.0,21206.0,1.90174362]
[1674041667199,0.238356,21207.0,21206.0,2.07086871]
[1674041667457,0.238356,21207.0,21206.0,2.35261602]
[1674041667968,0.238356,21207.0,21206.0,2.35290351]
[1674041668232,0.23,21207.0,21206.0,2.35090351]
[1674041668769,0.234,21207.0,21206.0,2.39590351]
[1674041669036,0.23389854,21207.0,21206.0,2.40441246]
[1674041670110,0.23389854,21207.0,21206.0,2.63025123]
[1674041670650,0.23389854,21207.0,21206.0,2.40441246]
[1674041672518,0.23389854,21207.0,21206.0,2.63020297]
[1674041672804,0.23389854,21207.0,21206.0,2.40441246]
[1674041673063,0.00729756,21211.0,21206.0,2.40441246]
[1674041673327,0.00729756,21211.0,21210.0,0.1111]
[1674041673738,0.00729756,21211.0,21210.0,1.836511]
[1674041674020,0.00729756,21211.0,21210.0,2.14843159]
[1674041674321,0.01129756,21211.0,21210.0,2.14843159]
[1674041674583,0.00729756,21211.0,21210.0,2.14843159]
[1674041674853,0.02229756,21211.0,21210.0,2.14943159]
[1674041677232,0.02229756,21211.0,21210.0,2.14952223]
[1674041681807,0.02229756,21211.0,21210.0,2.26020348]
[1674041684723,0.25229756,21211.0,21210.0,2.26020348]
[1674041686034,0.02229756,21211.0,21210.0,2.26020348]
[1674041692923,0.02229756,21211.0,21210.0,2.37307113]
[1674041693186,0.02229756,21211.0,21210.0,2.26020348]
[1674041694478,0.02229756,21211.0,21210.0,2.14862223]
[1674041695970,0.02229756,21211.0,21210.0,2.26148988]
[1674041696932,0.02229756,21211.0,21210.0,2.14862223]
[1674041697683,0.02229756,21211.0,21210.0,2.26148988]
[1674041697931,0.02229756,21211.0,21210.0,2.59680919]
[1674041698167,0.02229756,21211.0,21210.0,2.43079135]
[1674041698662,0.02229756,21211.0,21210.0,2.26148988]
[1674041698920,0.02229756,21211.0,21210.0,2.14862223]
[1674041700709,0.02229756,21211.0,21210.0,2.43079135]
[1674041700977,0.02229756,21211.0,21210.0,2.26148988]
[1674041701227,0.02229756,21211.0,21210.0,2.43079135]
[1674041701481,0.02229756,21211.0,21210.0,2.26148988]
[1674041702970,0.02229756,21211.0,21210.0,2.43079135]
[1674041703741,0.02229756,21211.0,21210.0,2.26148988]
[1674041703995,0.02229756,21211.0,21210.0,2.43079135]
[1674041704263,0.02229756,21211.0,21210.0,2.59713766]
[1674041704264,0.0221902,21211.0,21210.0,2.59713766]
[1674041704540,0.0221902,21211.0,21210.0,2.48427001]
[1674041705278,0.0221902,21211.0,21210.0,2.59713758]
[1674041705569,0.0221902,21211.0,21210.0,2.54070384]
[1674041705820,0.0221902,21211.0,21210.0,2.59712727]
[1674041706080,0.0221902,21211.0,21210.0,2.43078096]
[1674041706332,0.0221902,21211.0,21210.0,2.59790716]
[1674041706833,0.0221902,21211.0,21210.0,2.71077093]
[1674041707401,0.0221902,21211.0,21210.0,2.43082215]
[1674041707608,0.0221902,21211.0,21210.0,2.59797477]
[1674041708114,0.0221902,21211.0,21210.0,2.48506205]
[1674041708647,0.0221902,21211.0,21210.0,2.71079735]
[1674041710179,0.0221902,21211.0,21210.0,2.82337139]
[1674041710960,0.0221902,21211.0,21210.0,2.59763609]
[1674041711227,0.0221902,21211.0,21210.0,2.70873609]
[1674041711727,0.0221902,21211.0,21210.0,2.42687485]
[1674041713000,0.0221902,21211.0,21210.0,2.42587485]
[1674041713001,0.0071902,21211.0,21210.0,2.42587485]
[1674041713260,0.0111902,21211.0,21210.0,2.47487485]
[1674041713514,0.0071902,21211.0,21210.0,2.70815119]
[1674041713763,0.0071902,21211.0,21210.0,2.75715119]
[1674041713764,0.0111902,21211.0,21210.0,2.75715119]
[1674041714021,0.0111902,21211.0,21210.0,2.98299069]
[1674041714270,0.0111902,21211.0,21210.0,2.75715119]
[1674041714798,0.0111902,21211.0,21210.0,2.98300022]
[1674041715139,0.0111902,21211.0,21210.0,2.75715119]
[1674041716072,0.0111902,21211.0,21210.0,2.98300074]
[1674041716591,0.0111902,21211.0,21210.0,2.75715119]
[1674041717355,0.0111902,21211.0,21210.0,2.47487485]
[1674041717608,0.0111902,21211.0,21210.0,2.75717262]
[1674041717870,0.0111902,21211.0,21210.0,2.47487485]
[1674041718093,0.0111902,21211.0,21210.0,2.41927485]
[1674041720219,0.0111902,21211.0,21210.0,2.70153842]
[1674041720467,0.0111902,21211.0,21210.0,2.41927485]
[1674041720715,0.00669335,21211.0,21210.0,2.41927485]
[1674041722022,0.10669335,21211.0,21210.0,2.41927485]
[1674041723555,0.00633481,21212.0,21210.0,2.75467974]
[1674041723811,0.00633481,21212.0,21211.0,1.15099314]
[1674041724074,8.1e-07,21212.0,21211.0,2.10239914]
[1674041724333,0.00906028,21213.0,21211.0,2.10239914]
[1674041724583,0.00906028,21213.0,21212.0,1.16061715]
[1674041724837,0.00906028,21213.0,21212.0,2.12136643]
[1674041725121,0.00906028,21213.0,21212.0,2.40347915]
[1674041725620,0.00906028,21213.0,21212.0,2.40348633]
[1674041725885,0.01206028,21213.0,21212.0,2.45648633]
[1674041726142,0.01206028,21213.0,21212.0,2.17437361]
[1674041726405,0.01206028,21213.0,21212.0,2.45644356]
[1674041726877,0.01206028,21213.0,21212.0,2.23248744]
[1674041727412,0.01206028,21213.0,21212.0,2.23249322]
[1674041727944,0.01206028,21213.0,21212.0,2.006837]
[1674041728988,0.01206028,21213.0,21212.0,2.23249322]
[1674041729819,0.01206028,21213.0,21212.0,2.006837]
[1674041730383,0.01206028,21213.0,21212.0,2.23249322]
[1674041730875,0.01206028,21213.0,21212.0,1.66406267]
[1674041731701,0.01206028,21213.0,21212.0,2.00139295]
[1674041731983,0.01206028,21213.0,21212.0,1.83332505]
[1674041732243,0.01206028,21213.0,21212.0,1.66406267]
[1674041732495,0.03831365,21213.0,21212.0,1.66406267]
[1674041732750,0.03831365,21213.0,21212.0,1.83332505]
[1674041734370,0.03831365,21213.0,21212.0,2.00139547]
[1674041734902,0.03831365,21213.0,21212.0,2.11421102]
[1674041735160,0.03831365,21213.0,21212.0,1.8885548]
[1674041736053,0.03831365,21213.0,21212.0,2.00137939]
[1674041736762,0.03831365,21213.0,21212.0,1.76819089]
[1674041737537,0.03831365,21213.0,21212.0,1.60012047]
[1674041738321,0.03831365,21213.0,21212.0,1.65494691]
[1674041739177,0.03831365,21213.0,21212.0,1.76780763]
[1674041739703,0.03831365,21213.0,21212.0,1.6001566]
[1674041739975,0.03831365,21213.0,21212.0,1.65496604]
[1674041740490,0.03831365,21213.0,21212.0,1.88062226]
[1674041740788,0.03831365,21213.0,21212.0,1.71135988]
[1674041740982,0.03831365,21213.0,21212.0,1.65497693]
[1674041741322,0.03831365,21213.0,21212.0,1.88063315]
[1674041743421,0.03831365,21213.0,21212.0,1.76784364]
[1674041743680,0.03831365,21213.0,21212.0,1.76765533]
[1674041743954,0.03831365,21213.0,21212.0,1.60017348]
[1674041744221,0.03831365,21213.0,21212.0,1.76767352]
[1674041744481,0.03831365,21213.0,21212.0,1.60017348]
[1674041744741,0.03831365,21213.0,21212.0,1.295862]
[1674041745608,0.03831365,21213.0,21212.0,1.40872871]
[1674041746699,0.03831365,21213.0,21212.0,1.57800198]
[1674041747462,0.03831365,21213.0,21212.0,1.40872871]
[1674041748383,0.03831365,21213.0,21212.0,1.57800198]
[1674041748889,0.03831365,21213.0,21212.0,1.74559257]
[1674041749158,0.03831365,21213.0,21212.0,1.51391171]
[1674041749711,0.03831365,21213.0,21212.0,1.85077659]
[1674041750710,0.03831365,21213.0,21212.0,1.79429283]
[1674041750952,0.03831365,21213.0,21212.0,1.73801884]
[1674041751692,0.03831365,21213.0,21212.0,1.96367506]
[1674041751960,0.03831365,21213.0,21212.0,1.79429283]
[1674041752738,0.03831365,21213.0,21212.0,2.07640555]
[1674041753012,0.03831365,21213.0,21212.0,1.96365581]
[1674041753268,0.03831365,21213.0,21212.0,1.9636589]
[1674041753497,0.03831365,21213.0,21212.0,2.07640555]
[1674041755605,0.03831365,21213.0,21212.0,1.96366227]
[1674041756379,0.03831365,21213.0,21212.0,2.07640555]
[1674041757387,0.03831365,21213.0,21212.0,1.96369834]
[1674041758430,0.03831365,21213.0,21212.0,2.10568235]
[1674041758684,0.03831365,21213.0,21212.0,1.84776059]
[1674041758954,0.02273914,21213.0,21212.0,1.81005963]
[1674041759225,0.02273914,21213.0,21212.0,2.14888511]
[1674041760002,0.02273914,21213.0,21212.0,1.81005963]
[1674041760768,1.4e-07,21213.0,21212.0,1.81005963]
[1674041762489,1.4e-07,21213.0,21212.0,2.09222148]
[1674041763248,1.4e-07,21213.0,21212.0,1.98112148]
[1674041764028,1.4e-07,21213.0,21212.0,2.20687362]
[1674041764272,1.4e-07,21213.0,21212.0,2.198384]
[1674041764558,1.4e-07,21213.0,21212.0,2.19838307]
[1674041765335,1.4e-07,21213.0,21212.0,1.91622122]
[1674041765600,1.4e-07,21213.0,21212.0,1.81103822]
[1674041765863,1.4e-07,21213.0,21212.0,1.91622122]
[1674041766393,1.4e-07,21213.0,21212.0,1.97262148]
[1674041770839,1.4e-07,21213.0,21212.0,1.69045963]
[1674041772087,1.4e-07,21213.0,21212.0,1.97257352]
[1674041772339,1.4e-07,21213.0,21212.0,2.19827187]
[1674041773135,1.4e-07,21213.0,21212.0,1.91615798]
[1674041774140,1.4e-07,21213.0,21212.0,1.75456542]
[1674041774397,1.4e-07,21213.0,21212.0,1.98026377]
[1674041774653,1.4e-07,21213.0,21212.0,2.19827187]
[1674041774951,1.4e-07,21213.0,21212.0,1.97257352]
[1674041775934,1.4e-07,21213.0,21212.0,1.9161486]
[1674041776682,1.4e-07,21213.0,21212.0,2.19826249]
[1674041777195,1.4e-07,21213.0,21212.0,1.97257352]
[1674041777446,1.4e-07,21213.0,21212.0,2.1982398]
[1674041778738,1.4e-07,21213.0,21212.0,1.97257352]
[1674041779745,1.4e-07,21213.0,21212.0,2.19823115]
[1674041781626,1.4e-07,21213.0,21212.0,1.97257352]
[1674041783413,1.4e-07,21213.0,21212.0,1.69045963]
[1674041784734,1.4e-07,21213.0,21212.0,1.97249627]
[1674041785245,0.00997181,21214.0,21213.0,0.21528941]
[1674041785515,0.00997181,21214.0,21213.0,1.70132221]
[1674041785746,0.00997181,21214.0,21213.0,2.27571975]
[1674041786019,0.00997181,21214.0,21213.0,2.10649721]
[1674041786544,0.00997181,21214.0,21213.0,2.38853385]
[1674041787344,0.01297181,21214.0,21213.0,2.44453385]
[1674041787578,0.01297181,21214.0,21213.0,2.21891066]
[1674041788608,0.01297181,21214.0,21213.0,2.16253817]
[1674041788830,0.01297181,21214.0,21213.0,2.1626288]
[1674041789916,0.01297181,21214.0,21213.0,2.44466544]
[1674041790445,0.01297181,21214.0,21213.0,2.21900129]
[1674041792360,0.01297181,21214.0,21213.0,2.21902428]
[1674041793325,0.01297181,21214.0,21213.0,2.04806465]
[1674041793847,0.00775184,21214.0,21213.0,2.17318915]
[1674041794104,0.00775184,21214.0,21213.0,2.62311463]
[1674041794413,8.4e-07,21214.0,21213.0,2.28428915]
[1674041794678,0.00997181,21216.0,21213.0,2.97755431]
[1674041794938,0.00997181,21216.0,21215.0,0.50411318]
[1674041795231,0.00997181,21216.0,21215.0,2.71649382]
[1674041795491,0.00997181,21216.0,21215.0,2.44308064]
[1674041795778,0.00997181,21216.0,21215.0,2.72499382]
[1674041796033,0.00997181,21216.0,21215.0,2.6122467]
[1674041796293,0.00997181,21216.0,21215.0,2.70422785]
[1674041796563,0.00997181,21216.0,21215.0,1.611254]
[1674041796825,0.00997181,21216.0,21215.0,1.61888324]
[1674041797339,0.00997181,21216.0,21215.0,1.506092]
[1674041797608,0.00997181,21216.0,21215.0,2.05739247]
[1674041797872,0.00997181,21216.0,21215.0,2.5829275]
[1674041798137,0.00997181,21216.0,21215.0,2.35739247]
[1674041798433,0.00997181,21216.0,21215.0,2.4701678]
[1674041798692,0.00997181,21216.0,21215.0,2.41378029]
[1674041798958,0.00997181,21216.0,21215.0,2.69569347]
[1674041799206,0.00997181,21216.0,21215.0,2.41378029]
[1674041799919,0.00997181,21216.0,21215.0,2.69569347]
[1674041800181,0.00997181,21216.0,21215.0,2.58292711]
[1674041801004,0.00997181,21216.0,21215.0,2.69569347]
[1674041802309,0.00997181,21216.0,21215.0,2.41378029]
[1674041802576,0.00997181,21216.0,21215.0,2.69569347]
[1674041803914,0.00997181,21216.0,21215.0,2.41378029]
[1674041804188,0.00997181,21216.0,21215.0,2.69569347]
[1674041804954,0.00997181,21216.0,21215.0,2.70419347]
[1674041805211,0.00997181,21216.0,21215.0,2.47865844]
[1674041806821,0.00997181,21216.0,21215.0,2.70407939]
[1674041807335,0.00997181,21216.0,21215.0,2.42216621]
[1674041807816,0.01148797,21218.0,21215.0,3.29158108]
[1674041807819,0.01148797,21218.0,21216.0,0.16359467]
[1674041808073,0.01148797,21218.0,21217.0,2.19658741]
[1674041808327,0.01148797,21218.0,21217.0,2.61023241]
[1674041808586,0.01148797,21218.0,21217.0,2.44123206]
[1674041809898,0.01248797,21218.0,21217.0,2.44123206]
[1674041810416,0.01348797,21218.0,21217.0,2.6951929]
[1674041811148,0.01348797,21218.0,21217.0,2.69514242]
[1674041812958,0.01348797,21218.0,21217.0,2.52623206]
[1674041813218,0.01348797,21218.0,21217.0,2.69509442]
[1674041813477,0.01202752,21219.0,21218.0,0.01412533]
[1674041813717,0.01202752,21219.0,21218.0,1.74998803]
[1674041814056,0.01202752,21219.0,21218.0,1.85512403]
[1674041814760,0.01202752,21219.0,21218.0,2.02398639]
[1674041815004,0.01202752,21219.0,21218.0,2.27722205]
[1674041815532,0.01202752,21219.0,21218.0,2.2771683]
[1674041815797,0.01202752,21219.0,21218.0,2.16465335]
[1674041816064,0.01202752,21219.0,21218.0,2.38998715]
[1674041816327,0.01202752,21219.0,21218.0,2.16465335]
[1674041816832,0.01202752,21219.0,21218.0,2.38998715]
[1674041817351,0.01202752,21219.0,21218.0,2.64185504]
[1674041817607,0.01202752,21219.0,21218.0,2.86718884]
[1674041818122,0.01202752,21219.0,21218.0,2.64185504]
[1674041818678,0.01202752,21219.0,21218.0,2.86718884]
[1674041818679,5.2e-07,21219.0,21218.0,2.86718884]
[1674041818902,0.51994115,21220.0,21219.0,0.00483025]
[1674041819202,0.51994115,21220.0,21219.0,1.99138451]
[1674041819417,0.01420897,21220.0,21219.0,2.5045493]
[1674041819694,0.01420897,21220.0,21219.0,1.27954378]
[1674041819953,0.01420897,21220.0,21219.0,1.16014378]
[1674041820217,0.01420897,21220.0,21219.0,1.03455]
[1674041821060,0.01420897,21220.0,21219.0,0.94255]
[1674041821319,0.01420897,21220.0,21219.0,1.03455]
[1674041821850,0.01420897,21220.0,21219.0,1.33455]
[1674041828879,0.01420897,21220.0,21219.0,1.439678]
[1674041829688,0.01420897,21220.0,21219.0,1.33455]
[1674041833832,0.01420897,21220.0,21219.0,1.03455]
[1674041834096,0.56257697,21220.0,21219.0,1.03455]
[1674041834379,0.56257697,21220.0,21219.0,1.03448609]
[1674041834920,0.56257697,21220.0,21219.0,0.94248609]
[1674041835174,0.56257697,21220.0,21219.0,0.98748609]
[1674041836937,0.34037697,21220.0,21219.0,1.28748609]
[1674041837459,0.01420897,21220.0,21219.0,1.28748609]
[1674041850313,0.44170397,21220.0,21219.0,0.98748609]
[1674041853355,0.44170397,21220.0,21219.0,1.28748609]
[1674041856278,0.12420897,21220.0,21219.0,1.28748609]
[1674041858721,0.12409031,21220.0,21219.0,1.28748609]
[1674041864753,0.01409031,21220.0,21219.0,1.28748609]
[1674041869506,0.01409031,21220.0,21219.0,0.98748609]
[1674041869764,0.36186931,21220.0,21219.0,1.28748609]
[1674041870270,0.01409031,21220.0,21219.0,1.28761865]
[1674041879264,0.01409031,21220.0,21219.0,1.28748609]
[1674041882519,0.01409031,21220.0,21219.0,1.28761865]
[1674041883032,0.01409031,21220.0,21219.0,1.05394654]
[1674041893122,0.01409031,21220.0,21219.0,1.16641232]
[1674041893373,0.01409031,21220.0,21219.0,1.16650502]
[1674041893875,0.01409031,21220.0,21219.0,1.33520517]
[1674041894162,0.01409031,21220.0,21219.0,1.16650502]
[1674041894658,0.01409031,21220.0,21219.0,1.49786707]
[1674041894921,0.01409031,21220.0,21219.0,1.16650502]
[1674041896275,0.01409031,21220.0,21219.0,1.61047125]
[1674041896537,0.01409031,21220.0,21219.0,1.60305384]
[1674041896825,0.01409031,21220.0,21219.0,1.38513745]
[1674041897105,0.01409031,21220.0,21219.0,1.71433254]
[1674041897347,0.01409031,21220.0,21219.0,1.93977342]
[1674041897597,0.01409031,21220.0,21219.0,1.71433254]
[1674041897861,0.01409031,21220.0,21219.0,1.93977636]
[1674041898112,0.01409031,21220.0,21219.0,1.71433254]
[1674041899126,0.01409031,21220.0,21219.0,1.82728053]
[1674041899627,0.01409031,21220.0,21219.0,1.93984524]
[1674041900414,0.01409031,21220.0,21219.0,1.658178]
[1674041902706,0.01409031,21220.0,21219.0,1.93984524]
[1674041903732,0.01409031,21220.0,21219.0,1.71433254]
[1674041904057,0.01409031,21220.0,21219.0,1.93971042]
[1674041906215,0.01400329,21220.0,21219.0,1.93971042]
[1674041907519,0.01400329,21220.0,21219.0,1.35797632]
[1674041908552,0.01400329,21220.0,21219.0,1.82696872]
[1674041908811,0.01400329,21220.0,21219.0,2.04251483]
[1674041909628,0.01400329,21220.0,21219.0,1.08216827]
[1674041909889,0.01400329,21220.0,21219.0,0.96949265]
[1674041910146,0.34038929,21220.0,21219.0,0.96949265]
[1674041911749,0.33538929,21220.0,21219.0,0.96949265]
[1674041912825,0.33538929,21220.0,21219.0,1.26949265]
[1674041913342,0.33538929,21220.0,21219.0,1.26958535]
[1674041916492,0.33538929,21220.0,21219.0,1.26949265]
[1674041917019,0.33538929,21220.0,21219.0,1.26958535]
[1674041918585,0.33538929,21220.0,21219.0,1.26949265]
[1674041923423,0.00900329,21220.0,21219.0,1.26949265]
[1674041932387,0.00893277,21220.0,21219.0,1.26949265]
[1674041934495,0.00739777,21220.0,21219.0,1.26949265]
[1674041935023,0.33203677,21220.0,21219.0,0.96949265]
[1674041935535,0.44203677,21220.0,21219.0,0.96949265]
[1674041936868,0.44203677,21220.0,21219.0,1.26949265]
[1674041938188,0.44203677,21220.0,21219.0,1.26971129]
[1674041940798,0.44203677,21220.0,21219.0,1.26949265]
[1674041941317,0.33203677,21220.0,21219.0,1.26949265]
[1674041943414,0.00739777,21220.0,21219.0,1.26949265]
[1674041945962,0.32361177,21220.0,21219.0,1.26949265]
[1674041947014,0.00739777,21220.0,21219.0,1.26949265]
[1674041949179,0.34477277,21220.0,21219.0,0.96949265]
[1674041950350,0.00739777,21220.0,21219.0,1.08216827]
[1674041950600,0.00739777,21220.0,21219.0,1.26949265]
[1674041951388,0.00739777,21220.0,21219.0,1.38216827]
[1674041952152,0.00739777,21220.0,21219.0,1.57289422]
[1674041952399,0.00739777,21220.0,21219.0,2.31275768]
[1674041952653,0.00739777,21220.0,21219.0,2.05825604]
[1674041952898,0.00739777,21220.0,21219.0,1.7765888]
[1674041953158,0.00739777,21220.0,21219.0,2.09595908]
[1674041953422,0.00739777,21220.0,21219.0,2.05095908]
[1674041953664,0.00739777,21220.0,21219.0,2.15095908]
[1674041953911,0.00739777,21220.0,21219.0,2.05095908]
[1674041954237,0.00739777,21220.0,21219.0,2.14995908]
[1674041955388,0.00739777,21220.0,21219.0,2.14145908]
[1674041956356,0.0047692,21220.0,21219.0,2.14145908]
[1674041957094,0.0047692,21220.0,21219.0,2.33810181]
[1674041957341,0.0047692,21220.0,21219.0,2.34653323]
[1674041957832,0.0047692,21220.0,21219.0,2.30884261]
[1674041958654,0.0047692,21220.0,21219.0,2.59021966]
[1674041959147,0.0047692,21220.0,21219.0,2.30884261]
[1674041959384,0.0047692,21220.0,21219.0,2.30906125]
[1674041959632,0.0047692,21220.0,21219.0,2.54469125]
[1674041959907,0.0047692,21220.0,21219.0,2.58328521]
[1674041960409,0.0047692,21220.0,21219.0,2.56955598]
[1674041960656,0.0047692,21220.0,21219.0,2.5813186]
[1674041961151,0.0047692,21220.0,21219.0,2.58183074]
[1674041961402,0.0047692,21220.0,21219.0,2.86105235]
[1674041961646,0.0047692,21220.0,21219.0,2.86105165]
[1674041962858,0.0047692,21220.0,21219.0,3.08595702]
[1674041963123,0.0047692,21220.0,21219.0,2.86105165]
[1674041963891,0.00351425,21220.0,21219.0,2.86105165]
[1674041964870,0.00351425,21220.0,21219.0,3.08593003]
[1674041965116,0.00351425,21220.0,21219.0,3.08589759]
[1674041965352,0.00351425,21220.0,21219.0,2.86105165]
[1674041965598,0.00351425,21220.0,21219.0,3.08589402]
[1674041965818,0.00351425,21220.0,21219.0,2.86105165]
[1674041966053,0.00351425,21220.0,21219.0,3.08589763]
[1674041966300,2.5e-07,21220.0,21219.0,2.85070566]
[1674041966548,0.01616771,21221.0,21220.0,0.16343257]
[1674041966792,0.01616771,21221.0,21220.0,2.55333813]
[1674041967047,0.01616771,21221.0,21220.0,2.69704547]
[1674041967782,0.01616771,21221.0,21220.0,2.53838585]
[1674041968037,0.01616771,21221.0,21220.0,2.63038585]
[1674041968289,0.01616771,21221.0,21220.0,2.89834252]
[1674041968542,7.1e-07,21221.0,21220.0,2.89834252]
[1674041968779,0.01664065,21222.0,21220.0,2.78591087]
[1674041969018,0.01664065,21222.0,21221.0,0.59680169]
[1674041969265,6.5e-07,21222.0,21221.0,2.05467769]
[1674041969603,0.01445688,21223.0,21221.0,2.65278314]
[1674041969886,0.01445688,21223.0,21222.0,0.78418213]
[1674041970146,0.01445688,21223.0,21222.0,2.07580613]
[1674041970413,0.01445688,21223.0,21222.0,2.11440009]
[1674041970937,0.01445688,21223.0,21222.0,1.61641796]
[1674041971196,0.01445688,21223.0,21222.0,1.50531796]
[1674041971438,0.01445688,21223.0,21222.0,1.59831796]
[1674041971706,0.01445688,21223.0,21222.0,1.58981796]
[1674041971965,0.01445688,21223.0,21222.0,1.551224]
[1674041972226,0.01445688,21223.0,21222.0,1.559724]
[1674041972490,0.01616598,21225.0,21223.0,0.01152832]
[1674041972761,0.01616598,21225.0,21224.0,1.413492]
[1674041973011,0.01616598,21225.0,21224.0,1.818583]
[1674041973307,0.01616598,21225.0,21224.0,1.41371059]
[1674041974418,0.01616598,21225.0,21224.0,1.50571059]
[1674041974712,0.01616598,21225.0,21224.0,1.80571059]
[1674041974971,0.01616598,21225.0,21224.0,2.21863654]
[1674041975241,0.01616598,21225.0,21224.0,2.36858059]
[1674041975530,0.01616598,21225.0,21224.0,2.13300059]
[1674041977666,0.01616598,21225.0,21224.0,1.80571059]
[1674041981150,0.01616598,21225.0,21224.0,1.91080059]
[1674041982479,0.01935486,21227.0,21224.0,1.91080059]
[1674041982480,0.01935486,21227.0,21225.0,0.03383402]
[1674041982770,0.01935486,21227.0,21226.0,1.41336]
[1674041983085,0.01935486,21227.0,21226.0,1.71336]
[1674041983869,0.01935486,21227.0,21226.0,1.75336]
[1674041988281,0.01935486,21227.0,21226.0,1.45336]
[1674041988550,0.33479986,21227.0,21226.0,1.45336]
[1674041989601,0.33479986,21227.0,21226.0,1.75336]
[1674041991436,0.33479986,21227.0,21226.0,1.46115172]
[1674041991708,0.33479986,21227.0,21226.0,0.69003172]
[1674041995143,0.64558759,21227.0,21226.0,0.69003172]
[1674041995370,1.23636129,21227.0,21226.0,0.21891172]
[1674041995630,1.34935338,21227.0,21226.0,0.21891172]
[1674041995959,0.97957968,21227.0,21226.0,0.21891172]
[1674041996135,0.86658759,21227.0,21226.0,0.21891172]
[1674041996651,1.1491652,21227.0,21226.0,0.21891172]
[1674041996923,0.97957968,21227.0,21226.0,0.21891172]
[1674041997440,0.86658759,21227.0,21226.0,0.21891172]
[1674041998457,0.97957968,21227.0,21226.0,0.21891172]
[1674041998974,0.97957968,21227.0,21226.0,0.04]
[1674042000281,0.97957968,21227.0,21226.0,0.51112]
[1674042000521,0.86658759,21227.0,21226.0,1.28224]
[1674042000784,0.86658759,21227.0,21226.0,0.98224]
[1674042002140,0.86658759,21227.0,21226.0,0.51112]
[1674042002696,0.86658759,21227.0,21226.0,1.28224]
[1674042003004,0.86658759,21227.0,21226.0,0.98224]
[1674042003278,0.75598759,21227.0,21226.0,0.98224]
[1674042011031,0.75598759,21227.0,21226.0,0.51112]
[1674042011837,0.86897968,21227.0,21226.0,0.51112]
[1674042012103,0.86897968,21227.0,21226.0,0.04]
[1674042013372,0.98007968,21227.0,21226.0,0.04]
[1674042014681,0.86708759,21227.0,21226.0,0.04]
[1674042015301,0.86708759,21227.0,21226.0,0.51112]
[1674042015733,0.98007968,21227.0,21226.0,0.51112]
[1674042016512,0.86708759,21227.0,21226.0,0.51112]
[1674042016742,0.98007968,21227.0,21226.0,0.51112]
[1674042016996,1.81036134,21227.0,21226.0,0.04]
[1674042017260,2.15142003,21227.0,21226.0,0.03993244]
[1674042017513,3.37648248,21227.0,21226.0,0.03993244]
[1674042017775,1.92320432,21227.0,21226.0,0.03993244]
[1674042018036,2.86563204,21227.0,21226.0,0.03993244]
[1674042018298,2.86563278,21227.0,21226.0,0.03993244]
[1674042018570,0.15,21226.0,21225.0,0.03383402]
[1674042018832,5.68583462,21226.0,21225.0,0.03383402]
[1674042019113,5.17810052,21226.0,21225.0,0.03383402]
[1674042019945,5.46017222,21226.0,21225.0,0.03383402]
[1674042020202,0.5150129,21225.0,21220.0,0.20507402]
[1674042020469,0.2222,21221.0,21220.0,0.20507402]
[1674042020732,0.542785,21221.0,21220.0,0.20507402]
[1674042022271,0.580785,21221.0,21220.0,0.21007402]
[1674042022542,0.469685,21221.0,21220.0,0.21007402]
[1674042022789,0.469685,21221.0,21220.0,0.98132702]
[1674042023110,0.1491,21221.0,21220.0,0.98132702]
[1674042025394,0.038,21221.0,21220.0,0.98132702]
[1674042025893,0.038,21221.0,21220.0,0.99330994]
[1674042026149,0.038,21221.0,21220.0,1.21550994]
[1674042026439,0.038,21221.0,21220.0,1.32063094]
[1674042027188,0.72468734,21225.0,21220.0,1.31563094]
[1674042027434,0.035,21221.0,21220.0,1.10340994]
[1674042027698,0.72472079,21225.0,21220.0,1.21050994]
[1674042027951,0.003,21221.0,21220.0,1.15640994]
[1674042028249,0.003,21221.0,21220.0,1.26750994]
[1674042028516,0.003,21221.0,21220.0,1.37262594]
[1674042028769,0.72478778,21225.0,21220.0,1.31562594]
[1674042029036,0.36014566,21225.0,21221.0,0.60122595]
[1674042029288,0.36014566,21225.0,21222.0,1.413612]
[1674042029550,0.36014566,21225.0,21223.0,0.3]
[1674042029798,0.36014566,21225.0,21224.0,0.942328]
[1674042030047,0.003,21225.0,21224.0,0.942328]
[1674042030333,0.111,21226.0,21224.0,1.242328]
[1674042030582,0.111,21226.0,21224.0,0.942328]
[1674042031087,0.035,21225.0,21224.0,0.947328]
[1674042031342,0.111,21226.0,21224.0,1.25594534]
[1674042031605,0.035,21226.0,21225.0,0.3]
[1674042031860,0.035,21226.0,21225.0,1.242284]
[1674042032635,0.035,21226.0,21225.0,1.353384]
[1674042033158,0.01935486,21227.0,21225.0,1.353384]
[1674042033434,0.032,21226.0,21225.0,1.358384]
[1674042033677,0.01935486,21227.0,21225.0,1.464484]
[1674042033941,0.01935486,21227.0,21226.0,0.477283]
[1674042034219,0.01935486,21227.0,21226.0,1.61444]
[1674042034471,0.02235486,21227.0,21226.0,1.35334]
[1674042035005,0.01935486,21227.0,21226.0,1.35334]
[1674042035275,0.02035486,21227.0,21226.0,1.37034]
[1674042038923,0.02035486,21227.0,21226.0,1.38456918]
[1674042040702,0.02025606,21227.0,21226.0,1.38456918]
[1674042040947,0.02025606,21227.0,21226.0,1.49566918]
[1674042042579,0.02025606,21227.0,21226.0,1.60074418]
[1674042043029,0.02025606,21227.0,21226.0,1.49566918]
[1674042043308,0.02025606,21227.0,21226.0,1.60074318]
[1674042044614,0.02025606,21227.0,21226.0,1.49566918]
[1674042047955,0.02025606,21227.0,21226.0,1.60074318]
[1674042048213,0.02025606,21227.0,21226.0,1.49566918]
[1674042049493,0.02025606,21227.0,21226.0,1.71184318]
[1674042051318,0.02025606,21227.0,21226.0,2.0794853]
[1674042051593,0.02025606,21227.0,21226.0,2.06525612]